Workbook

Sheet Лист1
A1: Школа | C1: МБОУ г.Астрахани «СОШ №40» | F1: Утвердил: | G1: должность | H1: Индивидуальный предприниматель
A2: Типовое примерное меню приготавливаемых блюд | G2: фамилия | H2: Болквадзе Лейла Фазилевна
A3: Возрастная категория | E3: 7-11 лет | G3: дата | H3: 2026-01-01
A5: Неделя | B5: День недели | C5: Прием пищи | D5: Раздел меню | E5: Блюда | F5: Вес блюда, г | G5: Белки | H5: Жиры | I5: Углеводы | J5: Калорийность | K5: № рецептуры | L5: Цена
A6: 1 | B6: 1 | C6: Завтрак | D6: гор.блюдо | E6: Каша вязкая молочная из пшенной крупы (с маслом и сахаром) | F6: 230 | G6: 9.04 | H6: 11.57 | I6: 56.76 | J6: 368 | K6: 173 (2) | L6: 40.18
D7: доп. Блюдо | E7: Сыр (порциями) (Российский) | F7: 20 | G7: 4.64 | H7: 5.90 | I7: 0.00 | J7: 72 | K7: 15 | L7: 14.40
D8: хлеб | E8: Хлеб пшеничный | F8: 50 | G8: 3.95 | H8: 0.50 | I8: 1.05 | J8: 116.9 | K8: Н | L8: 1.70
D9: гор.напиток | E9: Чай с сахаром | F9: 200 | G9: 0.06 | H9: 0.02 | I9: 13.96 | J9: 55.82 | K9: 376 | L9: 5.26
D13: итого | F13: 500 | G13: 17.69 | H13: 17.99 | I13: 71.77 | J13: 612.72 | L13: =SUM(L6:L12) -> 61.54
A14: =A6 -> 1 | B14: =B6 -> 1 | C14: Обед | D14: закуска | E14: Салат из белокочанной капусты | F14: 60 | G14: 0.79 | H14: 1.95 | I14: 3.76 | J14: 35.76 | K14: 45 | L14: 4.70
D15: 1 блюдо | E15: Суп картофельный с бобовыми (вегетарианский) | F15: 200 | G15: 4.40 | H15: 4.22 | I15: 13.22 | J15: 118.6 | K15: 102 | L15: 14.21
D16: 2 блюдо | E16: Плов из птицы | F16: 250 | G16: 21.18 | H16: 13.08 | I16: 44.68 | J16: 381.67 | K16: 291 (2) | L16: 34.17
D17: хлеб бел. | E17: Хлеб пшеничный | F17: 40 | G17: 3.16 | H17: 0.40 | I17: 0.84 | J17: 93.52 | K17: Н | L17: 1.70
D18: хлеб черн. | E18: Хлеб ржано-пшеничный | F18: 40 | G18: 2.24 | H18: 0.44 | I18: 0.96 | J18: 91.96 | K18: Н | L18: 1.50
D19: сладкое | E19: Чай с сахаром | F19: 200 | G19: 0.06 | H19: 0.02 | I19: 13.96 | J19: 55.82 | K19: 376 | L19: 5.26
D23: итого | F23: 790 | G23: 31.83 | H23: 20.11 | I23: 77.42 | J23: 777.33 | L23: =SUM(L14:L22) -> 61.54
A24: =A6 -> 1 | B24: =B6 -> 1 | C24: Итого за день: | F24: 1290 | G24: 49.52 | H24: 38.10 | I24: 149.19 | J24: 1390.05 | L24: =L13+L23 -> 123.08
A25: 1 | B25: 2 | C25: Завтрак | D25: гор.блюдо | E25: Макароны отварные с сыром | F25: 230 | G25: 15.57 | H25: 18.31 | I25: 39.24 | J25: 384.56 | K25: 204 | L25: 26.70
D26: хлеб | E26: Хлеб пшеничный | F26: 50 | G26: 3.95 | H26: 0.50 | I26: 1.05 | J26: 116.9 | K26: Н | L26: 1.70
D27: гор.напиток | E27: Чай с сахаром | F27: 200 | G27: 0.06 | H27: 0.02 | I27: 13.96 | J27: 55.82 | K27: 376 | L27: 5.26
D28: сладкое | E28: Кондитерское изделие | F28: 20 | G28: 1.70 | H28: 2.26 | I28: 13.94 | J28: 82.9 | K28: Н | L28: 27.88
D32: итого | F32: 500 | G32: 21.28 | H32: 21.09 | I32: 68.19 | J32: 640.18 | L32: =SUM(L25:L31) -> 61.54
A33: =A25 -> 1 | B33: =B25 -> 2 | C33: Обед | D33: закуска | E33: Салат из свеклы отварной | F33: 60 | G33: 0.85 | H33: 3.61 | I33: 4.96 | J33: 55.68 | K33: 52 (1) | L33: 4.70
D34: 1 блюдо | E34: Суп картофельный с макаронными изделиями (вегетарианский) | F34: 250 | G34: 2.70 | H34: 2.85 | I34: 17.45 | J34: 118.25 | K34: 103 | L34: 15.88
D35: гарнир | E35: Картофельное пюре (с маслом) | F35: 150 | G35: 3.10 | H35: 9.15 | I35: 17.98 | J35: 172.86 | K35: 128 | L35: 12.00
D36: 2 блюдо | E36: Тефтели мясные (с соусом) | F36: 100 | G36: 6.78 | H36: 7.54 | I36: 8.58 | J36: 129.09 | K36: 279 | L36: 20.50
D37: хлеб бел. | E37: Хлеб пшеничный | F37: 40 | G37: 3.16 | H37: 0.40 | I37: 0.84 | J37: 93.52 | K37: Н | L37: 1.70
D38: хлеб черн. | E38: Хлеб ржано-пшеничный | F38: 40 | G38: 2.24 | H38: 0.44 | I38: 0.96 | J38: 91.96 | K38: Н | L38: 1.50
D39: сладкое | E39: Чай с сахаром | F39: 200 | G39: 0.06 | H39: 0.02 | I39: 13.96 | J39: 55.82 | K39: 376 | L39: 5.26
D42: итого | F42: 840 | G42: 18.89 | H42: 24.01 | I42: 64.73 | J42: 717.18 | L42: =SUM(L33:L41) -> 61.54
A43: =A25 -> 1 | B43: =B25 -> 2 | C43: Итого за день: | F43: 1340 | G43: 40.17 | H43: 45.10 | I43: 132.92 | J43: 1357.36 | L43: =L32+L42 -> 123.08
A44: 1 | B44: 3 | C44: Завтрак | D44: гор.блюдо | E44: Каша жидкая молочная из манной крупы (с маслом и сахаром) | F44: 240 | G44: 6.67 | H44: 11.69 | I44: 46.20 | J44: 317.45 | K44: 181 | L44: 38.98
D45: доп. Блюдо | E45: Масло (порциями) | F45: 10 | G45: 0.08 | H45: 7.25 | I45: 0.13 | J45: 66 | K45: 14 | L45: 15.6
D46: хлеб | E46: Хлеб пшеничный | F46: 50 | G46: 3.95 | H46: 0.50 | I46: 1.05 | J46: 116.9 | K46: Н | L46: 1.7
D47: гор.напиток | E47: Чай с сахаром | F47: 200 | G47: 0.06 | H47: 0.02 | I47: 13.96 | J47: 55.82 | K47: 376 | L47: 5.26
D50: итого | F50: 500 | G50: 10.76 | H50: 19.46 | I50: 61.34 | J50: 556.17 | L50: =SUM(L44:L49) -> 61.54
A51: =A44 -> 1 | B51: =B44 -> 3 | C51: Обед | D51: закуска | E51: Салат из моркови с растительным маслом | F51: 60 | G51: 0.74 | H51: 0.05 | I51: 6.89 | J51: 49.02 | K51: 62 | L51: 4.7
D52: 1 блюдо | E52: Борщ с капустой и картофелем (вегетарианский) | F52: 200 | G52: 1.44 | H52: 3.94 | I52: 8.74 | J52: 83 | K52: 82 | L52: 15.58
D53: гарнир | E53: Рис отварной | F53: 150 | G53: 3.65 | H53: 5.37 | I53: 36.69 | J53: 209.7 | K53: 304 | L53: 12.27
D54: 2 блюдо | E54: Котлеты из мяса птицы (с соусом) | F54: 100 | G54: 10.05 | H54: 11.34 | I54: 11.88 | J54: 190 | K54: 295 | L54: 20.53
D55: хлеб бел. | E55: Хлеб пшеничный | F55: 40 | G55: 3.16 | H55: 0.40 | I55: 0.84 | J55: 93.52 | K55: Н | L55: 1.7
D56: хлеб черн. | E56: Хлеб ржано-пшеничный | F56: 40 | G56: 2.24 | H56: 0.44 | I56: 0.96 | J56: 91.96 | K56: Н | L56: 1.5
D57: сладкое | E57: Чай с сахаром | F57: 200 | G57: 0.06 | H57: 0.02 | I57: 13.96 | J57: 55.82 | K57: 376 | L57: 5.26
D60: итого | F60: 790 | G60: 21.34 | H60: 21.56 | I60: 79.96 | J60: 773.02 | L60: =SUM(L51:L59) -> 61.54
A61: =A44 -> 1 | B61: =B44 -> 3 | C61: Итого за день: | F61: 1290 | G61: 32.10 | H61: 41.02 | I61: 141.30 | J61: 1329.19 | L61: =L50+L60 -> 123.08
A62: 1 | B62: 4 | C62: Завтрак | D62: гор.блюдо | E62: Каша вязкая молочная из риса и пшена (с маслом и сахаром) | F62: 240 | G62: 6.62 | H62: 12.19 | I62: 47.40 | J62: 327.26 | K62: 175 | L62: 38.98
D63: доп. Блюдо | E63: Масло (порциями) | F63: 10 | G63: 0.08 | H63: 7.25 | I63: 0.13 | J63: 66 | K63: 14 | L63: 15.60
D64: хлеб | E64: Хлеб пшеничный | F64: 50 | G64: 3.95 | H64: 0.50 | I64: 1.05 | J64: 116.9 | K64: Н | L64: 1.70
D65: гор.напиток | E65: Чай с сахаром | F65: 200 | G65: 0.06 | H65: 0.02 | I65: 13.96 | J65: 55.82 | K65: 376 | L65: 5.26
D68: итого | F68: 500 | G68: 10.71 | H68: 19.96 | I68: 62.54 | J68: 565.98 | L68: =SUM(L62:L67) -> 61.54
A69: =A62 -> 1 | B69: =B62 -> 4 | C69: Обед | D69: закуска | E69: Салат из белокочанной капусты | F69: 60 | G69: 0.79 | H69: 1.95 | I69: 3.76 | J69: 35.76 | K69: 45 | L69: 4.70
D70: 1 блюдо | E70: Суп картофельный с перловой крупой (вегетарианский) | F70: 200 | G70: 1.58 | H70: 2.16 | I70: 9.68 | J70: 68.6 | K70: 101 | L70: 12.31
D71: 2 блюдо | E71: Макаронник с мясом | F71: 250 | G71: 30.68 | H71: 42.80 | I71: 35.75 | J71: 474.15 | K71: 285 | L71: 36.07
D72: хлеб бел. | E72: Хлеб пшеничный | F72: 40 | G72: 3.16 | H72: 0.40 | I72: 0.84 | J72: 93.52 | K72: Н | L72: 1.70
D73: хлеб черн. | E73: Хлеб ржано-пшеничный | F73: 40 | G73: 2.24 | H73: 0.44 | I73: 0.96 | J73: 91.96 | K73: Н | L73: 1.50
D74: сладкое | E74: Чай с сахаром | F74: 200 | G74: 0.06 | H74: 0.02 | I74: 13.96 | J74: 55.82 | K74: 376 | L74: 5.26
D78: итого | F78: 790 | G78: 38.51 | H78: 47.77 | I78: 64.95 | J78: 819.81 | L78: =SUM(L69:L77) -> 61.54
A79: =A62 -> 1 | B79: =B62 -> 4 | C79: Итого за день: | F79: 1290 | G79: 49.22 | H79: 67.73 | I79: 127.49 | J79: 1385.79 | L79: =L68+L78 -> 123.08
A80: 1 | B80: 5 | C80: Завтрак | D80: гор.блюдо | E80: Каша жидкая молочная (с крупой рисовой с маслом и сахаром) | F80: 240 | G80: 5.57 | H80: 11.69 | I80: 47.35 | J80: 317.45 | K80: 182 | L80: 40.18
D81: доп. Блюдо | E81: Сыр (порциями) (Российский) | F81: 20 | G81: 4.64 | H81: 5.90 | I81: 0.00 | J81: 72 | K81: 15 | L81: 14.40
D82: хлеб | E82: Хлеб пшеничный | F82: 40 | G82: 3.16 | H82: 0.40 | I82: 0.84 | J82: 93.52 | K82: Н | L82: 1.70
D83: гор.напиток | E83: Чай с сахаром | F83: 200 | G83: 0.06 | H83: 0.02 | I83: 13.96 | J83: 55.82 | K83: 376 | L83: 5.26
D86: итого | F86: 500 | G86: 13.43 | H86: 18.01 | I86: 62.15 | J86: 538.79 | L86: =SUM(L80:L85) -> 61.54
A87: =A80 -> 1 | B87: =B80 -> 5 | C87: Обед | D87: закуска | E87: Салат из свеклы отварной | F87: 60 | G87: 0.85 | H87: 3.61 | I87: 4.96 | J87: 55.68 | K87: 52 (1) | L87: 4.70
D88: 1 блюдо | E88: Суп картофельный с пшенной крупой (вегетарианский) | F88: 200 | G88: 1.58 | H88: 2.16 | I88: 9.68 | J88: 68.6 | K88: 101 | L88: 4.68
D89: гарнир | E89: Каша рассыпчатая гречневая | F89: 150 | G89: 8.60 | H89: 6.09 | I89: 38.64 | J89: 243.75 | K89: 302 | L89: 17.40
D90: 2 блюдо | E90: Котлета мясная (с соусом) | F90: 100 | G90: 10.34 | H90: 12.52 | I90: 10.99 | J90: 163.75 | K90: 268 | L90: 26.30
D91: хлеб бел. | E91: Хлеб пшеничный | F91: 40 | G91: 3.16 | H91: 0.40 | I91: 0.84 | J91: 93.52 | K91: Н | L91: 1.70
D92: хлеб черн. | E92: Хлеб ржано-пшеничный | F92: 40 | G92: 2.24 | H92: 0.44 | I92: 0.96 | J92: 91.96 | K92: Н | L92: 1.50
D93: сладкое | E93: Чай с сахаром | F93: 200 | G93: 0.06 | H93: 0.02 | I93: 13.96 | J93: 55.82 | K93: 376 | L93: 5.26
D96: итого | F96: 790 | G96: 26.83 | H96: 25.24 | I96: 80.03 | J96: 773.08 | L96: =SUM(L87:L95) -> 61.54
A97: =A80 -> 1 | B97: =B80 -> 5 | C97: Итого за день: | F97: 1290 | G97: 40.26 | H97: 43.25 | I97: 142.18 | J97: 1311.87 | L97: =L86+L96 -> 123.08
A98: 2 | B98: 1 | C98: Завтрак | D98: гор.блюдо | E98: Каша вязкая молочная из пшенной, овсяной, гречневой и других круп (с маслом и сахаром) | F98: 230 | G98: 9.45 | H98: 12.12 | I98: 48.53 | J98: 341.71 | K98: 173 | L98: 40.18
D99: доп. Блюдо | E99: Сыр (порциями) (Российский) | F99: 20 | G99: 4.64 | H99: 5.90 | I99: 0.00 | J99: 72 | K99: 15 | L99: 14.40
D100: хлеб | E100: Хлеб пшеничный | F100: 50 | G100: 3.95 | H100: 0.50 | I100: 1.05 | J100: 116.9 | K100: Н | L100: 1.70
D101: гор.напиток | E101: Чай с сахаром | F101: 200 | G101: 0.06 | H101: 0.02 | I101: 13.96 | J101: 55.82 | K101: 376 | L101: 5.26
D105: итого | F105: 500 | G105: 18.10 | H105: 18.54 | I105: 63.54 | J105: 586.43 | L105: =SUM(L98:L104) -> 61.54
A106: =A98 -> 2 | B106: =B98 -> 1 | C106: Обед | D106: закуска | E106: Салат из моркови с растительным маслом | F106: 60 | G106: 0.74 | H106: 0.05 | I106: 6.89 | J106: 49.02 | K106: 62 | L106: 4.70
D107: 1 блюдо | E107: Щи из свежей капусты с картофелем (вегетарианский) | F107: 200 | G107: 1.42 | H107: 3.96 | I107: 6.32 | J107: 71.8 | K107: 88 | L107: 8.21
D108: гарнир | E108: Макаронные изделия отварные с маслом | F108: 150 | G108: 5.46 | H108: 5.79 | I108: 30.45 | J108: 195.72 | K108: 203 | L108: 19.75
D109: 2 блюдо | E109: Фрикадельки из кур (с соусом) | F109: 100 | G109: 13.02 | H109: 18.05 | I109: 7.36 | J109: 243.64 | K109: 297 | L109: 20.42
D110: хлеб бел. | E110: Хлеб пшеничный | F110: 40 | G110: 3.16 | H110: 0.40 | I110: 0.84 | J110: 93.52 | K110: Н | L110: 1.70
D111: хлеб черн. | E111: Хлеб ржано-пшеничный | F111: 40 | G111: 2.24 | H111: 0.44 | I111: 0.96 | J111: 91.96 | K111: Н | L111: 1.50
D112: сладкое | E112: Чай с сахаром | F112: 200 | G112: 0.06 | H112: 0.02 | I112: 13.96 | J112: 55.82 | K112: 376 | L112: 5.26
D114: итого | F114: 790 | G114: 26.10 | H114: 28.71 | I114: 66.78 | J114: 801.48 | L114: =SUM(L106:L113) -> 61.54
A115: =A98 -> 2 | B115: =B98 -> 1 | C115: Итого за день: | F115: 1290 | G115: 44.20 | H115: 47.25 | I115: 130.32 | J115: 1387.91 | L115: =L105+L114 -> 123.08
A116: 2 | B116: 2 | C116: Завтрак | D116: гор.блюдо | E116: Запеканка рисовая с творогом | F116: 150 | G116: 7.90 | H116: 11.37 | I116: 40.79 | J116: 301.42 | K116: 188 | L116: 37.85
D117: гор.блюдо | E117: Повидло малиновое | F117: 30 | G117: 0.15 | H117: 0.00 | I117: 21.48 | J117: 86.52 | K117: Н | L117: 3.43
D118: хлеб | E118: Хлеб пшеничный | F118: 40 | G118: 3.16 | H118: 0.40 | I118: 0.84 | J118: 93.52 | K118: Н | L118: 1.70
D119: гор.напиток | E119: Чай с сахаром | F119: 200 | G119: 0.06 | H119: 0.02 | I119: 13.96 | J119: 55.82 | K119: 376 | L119: 5.26
D120: фрукты | E120: Плоды или ягоды свежие | F120: 100 | G120: 0.40 | H120: 0.40 | I120: 9.80 | J120: 47 | K120: 338 | L120: 13.30
D123: итого | F123: 520 | G123: 11.67 | H123: 12.19 | I123: 86.87 | J123: 584.28 | L123: =SUM(L116:L122) -> 61.54
A124: =A116 -> 2 | B124: =B116 -> 2 | C124: Обед | D124: закуска | E124: Салат из белокочанной капусты | F124: 60 | G124: 0.79 | H124: 1.95 | I124: 3.76 | J124: 35.76 | K124: 45 | L124: 4.70
D125: 1 блюдо | E125: Рассольник ленинградский (вегетарианский) | F125: 200 | G125: 1.62 | H125: 4.08 | I125: 9.58 | J125: 85.8 | K125: 96 | L125: 15.61
D126: гарнир | E126: Рис отварной | F126: 150 | G126: 3.65 | H126: 5.37 | I126: 36.69 | J126: 209.7 | K126: 304 | L126: 12.27
D127: 2 блюдо | E127: Тефтели мясные (с соусом) | F127: 100 | G127: 6.78 | H127: 7.54 | I127: 8.58 | J127: 129.09 | K127: 279 | L127: 20.50
D128: хлеб бел. | E128: Хлеб пшеничный | F128: 40 | G128: 3.16 | H128: 0.40 | I128: 0.84 | J128: 93.52 | K128: Н | L128: 1.70
D129: хлеб черн. | E129: Хлеб ржано-пшеничный | F129: 40 | G129: 2.24 | H129: 0.44 | I129: 0.96 | J129: 91.96 | K129: Н | L129: 1.50
D130: сладкое | E130: Чай с сахаром | F130: 200 | G130: 0.06 | H130: 0.02 | I130: 13.96 | J130: 55.82 | K130: 376 | L130: 5.26
D133: итого | F133: 790 | G133: 18.30 | H133: 19.80 | I133: 74.37 | J133: 701.65 | L133: =SUM(L124:L132) -> 61.54
A134: =A116 -> 2 | B134: =B116 -> 2 | C134: Итого за день: | F134: 1310 | G134: 29.97 | H134: 31.99 | I134: 161.24 | J134: 1285.93 | L134: =L123+L133 -> 123.08
A135: 2 | B135: 3 | C135: Завтрак | D135: гор.блюдо | E135: Каша вязкая молочная из пшенной, овсяной, гречневой и других круп (с маслом и сахаром) | F135: 240 | G135: 9.86 | H135: 12.65 | I135: 50.64 | J135: 356.57 | K135: 173 | L135: 38.98
D136: доп. Блюдо | E136: Масло (порциями) | F136: 10 | G136: 0.08 | H136: 7.25 | I136: 0.13 | J136: 66 | K136: 14 | L136: 15.60
D137: хлеб | E137: Хлеб пшеничный | F137: 50 | G137: 3.95 | H137: 0.50 | I137: 1.05 | J137: 116.9 | K137: Н | L137: 1.70
D138: гор.напиток | E138: Чай с сахаром | F138: 200 | G138: 0.06 | H138: 0.02 | I138: 13.96 | J138: 55.82 | K138: 376 | L138: 5.26
D142: итого | F142: 500 | G142: 13.95 | H142: 20.42 | I142: 65.78 | J142: 595.29 | L142: =SUM(L135:L141) -> 61.54
A143: =A135 -> 2 | B143: =B135 -> 3 | C143: Обед | D143: закуска | E143: Салат из свеклы отварной | F143: 60 | G143: 0.85 | H143: 3.61 | I143: 4.96 | J143: 55.68 | K143: 52 (1) | L143: 4.70
D144: 1 блюдо | E144: Суп из овощей (вегетарианский) | F144: 200 | G144: 1.28 | H144: 4.00 | I144: 7.32 | J144: 76.2 | K144: 99 | L144: 17.55
D145: гарнир | E145: Пюре из бобовых с маслом | F145: 150 | G145: 13.30 | H145: 6.52 | I145: 31.67 | J145: 242.85 | K145: 199 | L145: 10.30
D146: 2 блюдо | E146: Котлеты из мяса птицы (с соусом) | F146: 100 | G146: 10.05 | H146: 11.34 | I146: 11.88 | J146: 190 | K146: 295 | L146: 20.53
D147: хлеб бел. | E147: Хлеб пшеничный | F147: 40 | G147: 3.16 | H147: 0.40 | I147: 0.84 | J147: 93.52 | K147: Н | L147: 1.70
D148: хлеб черн. | E148: Хлеб ржано-пшеничный | F148: 40 | G148: 2.24 | H148: 0.44 | I148: 0.96 | J148: 91.96 | K148: Н | L148: 1.50
D149: сладкое | E149: Чай с сахаром | F149: 200 | G149: 0.06 | H149: 0.02 | I149: 13.96 | J149: 55.82 | K149: 376 | L149: 5.26
D152: итого | F152: 790 | G152: 30.94 | H152: 26.33 | I152: 71.59 | J152: 806.03 | L152: =SUM(L143:L151) -> 61.54
A153: =A135 -> 2 | B153: =B135 -> 3 | C153: Итого за день: | F153: 1290 | G153: 44.89 | H153: 46.75 | I153: 137.37 | J153: 1401.32 | L153: =L142+L152 -> 123.08
A154: 2 | B154: 4 | C154: Завтрак | D154: гор.блюдо | E154: Макаронник с мясом | F154: 250 | G154: 30.68 | H154: 42.80 | I154: 35.75 | J154: 474.15 | K154: 285 | L154: 38.98
D155: доп. Блюдо | E155: Салат из моркови с растительным маслом | F155: 30 | G155: 0.37 | H155: 0.03 | I155: 3.44 | J155: 24.51 | K155: 62 (1) | L155: 15.60
D156: хлеб | E156: Хлеб пшеничный | F156: 40 | G156: 3.16 | H156: 0.40 | I156: 0.84 | J156: 93.52 | K156: Н | L156: 1.70
D157: гор.напиток | E157: Чай с сахаром | F157: 200 | G157: 0.06 | H157: 0.02 | I157: 13.96 | J157: 55.82 | K157: 376 | L157: 5.26
D161: итого | F161: 520 | G161: 34.27 | H161: 43.25 | I161: 53.99 | J161: 648 | L161: =SUM(L154:L160) -> 61.54
A162: =A154 -> 2 | B162: =B154 -> 4 | C162: Обед | D162: закуска | E162: Салат из белокочанной капусты | F162: 60 | G162: 0.79 | H162: 1.95 | I162: 3.76 | J162: 35.76 | K162: 45 | L162: 4.70
D163: 1 блюдо | E163: Суп картофельный с крупой вегетарианский (перловой, овсяной, пшеничной) | F163: 200 | G163: 1.58 | H163: 2.16 | I163: 9.68 | J163: 68.6 | K163: 101 | L163: 14.21
D164: 2 блюдо | E164: Плов из птицы | F164: 250 | G164: 21.18 | H164: 13.08 | I164: 44.68 | J164: 381.67 | K164: 291 (3) | L164: 34.17
D165: хлеб бел. | E165: Хлеб пшеничный | F165: 40 | G165: 3.16 | H165: 0.40 | I165: 0.84 | J165: 93.52 | K165: Н | L165: 1.70
D166: хлеб черн. | E166: Хлеб ржано-пшеничный | F166: 40 | G166: 2.24 | H166: 0.44 | I166: 0.96 | J166: 91.96 | K166: Н | L166: 1.50
D167: сладкое | E167: Чай с сахаром | F167: 200 | G167: 0.06 | H167: 0.02 | I167: 13.96 | J167: 55.82 | K167: 376 | L167: 5.26
D171: итого | F171: 790 | G171: 29.01 | H171: 18.05 | I171: 73.88 | J171: 727.33 | L171: =SUM(L162:L170) -> 61.54
A172: =A154 -> 2 | B172: =B154 -> 4 | C172: Итого за день: | F172: 1310 | G172: 63.28 | H172: 61.30 | I172: 127.87 | J172: 1375.33 | L172: =L161+L171 -> 123.08
A173: 2 | B173: 5 | C173: Завтрак | D173: гор.блюдо | E173: Каша вязкая молочная из риса и пшена (с маслом и сахаром) | F173: 240 | G173: 6.62 | H173: 12.19 | I173: 47.40 | J173: 327.26 | K173: 175 | L173: 40.18
D174: доп. Блюдо | E174: Сыр (порциями) (Российский) | F174: 20 | G174: 4.64 | H174: 5.90 | I174: 0.00 | J174: 72 | K174: 15 | L174: 14.40
D175: хлеб | E175: Хлеб пшеничный | F175: 40 | G175: 3.16 | H175: 0.40 | I175: 0.84 | J175: 93.52 | K175: Н | L175: 1.70
D176: гор.напиток | E176: Чай с сахаром | F176: 200 | G176: 0.06 | H176: 0.02 | I176: 13.96 | J176: 55.82 | K176: 376 | L176: 5.26
D179: итого | F179: 500 | G179: 14.48 | H179: 18.51 | I179: 62.20 | J179: 548.6 | L179: =SUM(L173:L178) -> 61.54
A180: =A173 -> 2 | B180: =B173 -> 5 | C180: Обед | D180: закуска | E180: Салат из свеклы отварной | F180: 60 | G180: 0.85 | H180: 3.61 | I180: 4.96 | J180: 55.68 | K180: 52 (1) | L180: 4.7
D181: 1 блюдо | E181: Суп картофельный с макаронными изделиями (вегетарианский) | F181: 250 | G181: 2.70 | H181: 2.85 | I181: 17.45 | J181: 118.25 | K181: 103 | L181: 15.88
D182: гарнир | E182: Каша рассыпчатая гречневая | F182: 150 | G182: 8.60 | H182: 6.09 | I182: 38.64 | J182: 243.75 | K182: 302 | L182: 17.4
D183: 2 блюдо | E183: Биточки куриные (с соусом) | F183: 100 | G183: 9.01 | H183: 9.88 | I183: 8.59 | J183: 146.25 | K183: 281 | L183: 15.1
D184: хлеб бел. | E184: Хлеб пшеничный | F184: 40 | G184: 3.16 | H184: 0.40 | I184: 0.84 | J184: 93.52 | K184: Н | L184: 1.7
D185: хлеб черн. | E185: Хлеб ржано-пшеничный | F185: 40 | G185: 2.24 | H185: 0.44 | I185: 0.96 | J185: 91.96 | K185: Н | L185: 1.5
D186: сладкое | E186: Чай с сахаром | F186: 200 | G186: 0.06 | H186: 0.02 | I186: 13.96 | J186: 55.82 | K186: 376 | L186: 5.26
D189: итого | F189: 840 | G189: 26.62 | H189: 23.29 | I189: 85.40 | J189: 805.23 | L189: =SUM(L180:L188) -> 61.54
A190: =A173 -> 2 | B190: =B173 -> 5 | C190: Итого за день: | F190: 1340 | G190: 41.10 | H190: 41.80 | I190: 147.60 | J190: 1353.83 | L190: =L179+L189 -> 123.08
C191: Среднее значение за период: | F191: =(F24+F43+F61+F79+F97+F115+F134+F153+F172+F190)/(IF(F24=0,0,1)+IF(F43=0,0,1)+IF(F61=0,0,1)+IF(F79=0,0,1)+IF(F97=0,0,1)+IF(F115=0,0,1)+IF(F134=0,0,1)+IF(F153=0,0,1)+IF(F172=0,0,1)+IF(F190=0,0,1)) -> 1304 | G191: =(G24+G43+G61+G79+G97+G115+G134+G153+G172+G190)/(IF(G24=0,0,1)+IF(G43=0,0,1)+IF(G61=0,0,1)+IF(G79=0,0,1)+IF(G97=0,0,1)+IF(G115=0,0,1)+IF(G134=0,0,1)+IF(G153=0,0,1)+IF(G172=0,0,1)+IF(G190=0,0,1)) -> 43.471 | H191: =(H24+H43+H61+H79+H97+H115+H134+H153+H172+H190)/(IF(H24=0,0,1)+IF(H43=0,0,1)+IF(H61=0,0,1)+IF(H79=0,0,1)+IF(H97=0,0,1)+IF(H115=0,0,1)+IF(H134=0,0,1)+IF(H153=0,0,1)+IF(H172=0,0,1)+IF(H190=0,0,1)) -> 46.429 | I191: =(I24+I43+I61+I79+I97+I115+I134+I153+I172+I190)/(IF(I24=0,0,1)+IF(I43=0,0,1)+IF(I61=0,0,1)+IF(I79=0,0,1)+IF(I97=0,0,1)+IF(I115=0,0,1)+IF(I134=0,0,1)+IF(I153=0,0,1)+IF(I172=0,0,1)+IF(I190=0,0,1)) -> 139.748 | J191: =(J24+J43+J61+J79+J97+J115+J134+J153+J172+J190)/(IF(J24=0,0,1)+IF(J43=0,0,1)+IF(J61=0,0,1)+IF(J79=0,0,1)+IF(J97=0,0,1)+IF(J115=0,0,1)+IF(J134=0,0,1)+IF(J153=0,0,1)+IF(J172=0,0,1)+IF(J190=0,0,1)) -> 1357.858 | L191: =(L24+L43+L61+L79+L97+L115+L134+L153+L172+L190)/(IF(L24=0,0,1)+IF(L43=0,0,1)+IF(L61=0,0,1)+IF(L79=0,0,1)+IF(L97=0,0,1)+IF(L115=0,0,1)+IF(L134=0,0,1)+IF(L153=0,0,1)+IF(L172=0,0,1)+IF(L190=0,0,1)) -> 123.08
